bitfinex/quotes_SOLUSD_20250525
["timestamp","ask_amount","ask_price","bid_price","bid_amount"]
[1748194343231,121.0,170.72,170.7,107.5]
[1748194344749,1.5717,170.76,170.7,107.5]
[1748194344922,36.76,170.74,170.7,107.5]
[1748194361370,36.76,170.74,170.62,116.62]
[1748194361371,18.64964886,170.7,170.62,116.62]
[1748194361553,25.66542082,170.7,170.65,26.0]
[1748194361743,18.64964886,170.73,170.65,26.0]
[1748194361942,18.64964886,170.73,170.65,107.5]
[1748194364069,44.31506968,170.73,170.65,107.5]
[1748194364769,18.64964886,170.69,170.64,26.0]
[1748194364981,62.22542082,170.68,170.61,81.5]
[1748194365188,62.22542082,170.68,170.64,26.0]
[1748194365486,36.56,170.68,170.64,26.0]
[1748194368155,36.56,170.68,170.65,26.0]
[1748194370177,36.56,170.68,170.66,26.0]
[1748194371170,27.29852082,170.74,170.66,26.0]
[1748194371363,36.56,170.69,170.66,26.0]
[1748194371676,36.56,170.71,170.66,61.12]
[1748194371878,4.1831177,170.75,170.66,61.12]
[1748194372176,36.56,170.73,170.67,0.14216157]
[1748194372770,36.56,170.73,170.7,26.0]
[1748194372972,36.56,170.73,170.69,26.0]
[1748194372973,36.56,170.73,170.72,26.0]
[1748194383170,36.56,170.73,170.72,107.5]
[1748194386088,38.74417238,170.73,170.72,107.5]
[1748194386968,38.74417238,170.73,170.67,26.0]
[1748194387302,38.74417238,170.73,170.68,26.0]
[1748194387479,36.56,170.73,170.68,26.0]
[1748194397872,36.56,170.73,170.68,107.5]
[1748194400700,18.64964886,170.75,170.68,26.0]
[1748194400883,36.54,170.73,170.68,26.0]
[1748194403000,36.54,170.73,170.65,116.6]
[1748194403294,36.54,170.73,170.68,26.0]
[1748194405294,18.64964886,170.72,170.68,26.0]
[1748194405495,0.14216157,170.69,170.58,15.36218403]
[1748194405674,18.64964886,170.7,170.61,26.0]
[1748194405882,18.64964886,170.69,170.61,26.0]
[1748194406289,36.46,170.68,170.61,61.12]
[1748194406487,38.64586007,170.68,170.61,35.12]
[1748194407095,36.46,170.68,170.64,26.0]
[1748194415294,25.66542082,170.67,170.64,26.0]
[1748194415681,2.18432141,170.66,170.64,26.0]
[1748194416194,2.18432141,170.66,170.61,26.0]
[1748194418277,44.31506968,170.65,170.61,26.0]
[1748194418481,18.64964886,170.63,170.61,26.0]
[1748194418695,18.64964886,170.63,170.58,26.0]
[1748194418696,36.46,170.62,170.58,26.0]
[1748194421610,36.46,170.62,170.55,35.12]
[1748194421802,36.46,170.62,170.55,116.62]
[1748194421803,62.12542082,170.62,170.55,116.62]
[1748194422105,62.12542082,170.62,170.58,26.0]
[1748194422806,18.64964886,170.61,170.55,26.0]
[1748194427482,18.64964886,170.61,170.55,107.5]
[1748194428610,44.31506968,170.61,170.55,107.5]
[1748194428913,18.64964886,170.61,170.49,35.14]
[1748194429085,18.64964886,170.61,170.52,26.0]
[1748194429491,18.64964886,170.61,170.56,26.0]
[1748194431294,18.64964886,170.59,170.54,26.0]
[1748194432317,18.64964886,170.59,170.51,26.0]
[1748194432603,18.64964886,170.59,170.52,26.0]
[1748194433111,18.64964886,170.58,170.52,26.0]
[1748194433406,18.64964886,170.58,170.51,26.0]
[1748194433593,45.86226968,170.58,170.52,26.0]
[1748194433988,18.64964886,170.56,170.52,26.0]
[1748194434189,36.48,170.55,170.51,26.0]
[1748194435090,36.48,170.55,170.48,35.14]
[1748194435492,36.48,170.55,170.51,26.0]
[1748194435902,36.48,170.55,170.5,26.0]
[1748194436688,18.64964886,170.54,170.5,26.0]
[1748194439213,36.48,170.55,170.5,26.0]
[1748194441904,36.86,170.54,170.53,26.0]
[1748194442111,36.86,170.57,170.53,26.0]
[1748194446521,36.86,170.57,170.53,107.5]
[1748194456246,36.86,170.57,170.56,26.0]
[1748194456407,36.86,170.57,170.56,107.5]
[1748194463926,44.31506968,170.64,170.56,107.5]
[1748194463927,5.7567177,170.66,170.57,0.14216157]
[1748194464118,36.86,170.64,170.61,26.0]
[1748194475226,36.86,170.64,170.58,26.0]
[1748194475443,36.86,170.64,170.6,26.0]
[1748194480453,36.86,170.64,170.61,26.0]
[1748194490967,2.18647375,170.63,170.61,26.0]
[1748194491770,36.7,170.62,170.61,26.0]
[1748194496684,36.7,170.64,170.61,26.0]
[1748194503284,18.64964886,170.63,170.58,81.5]
[1748194503489,2.19160237,170.62,170.61,26.0]
[1748194504098,20.84125123,170.62,170.61,26.0]
[1748194506893,20.84125123,170.62,170.58,26.0]
[1748194507898,2.19160237,170.61,170.58,26.0]
[1748194508707,18.64964886,170.62,170.58,26.0]
[1748194509814,2.1927234,170.61,170.58,26.0]
[1748194510719,2.1927234,170.6,170.58,26.0]
[1748194511099,38.7127234,170.6,170.58,26.0]
[1748194511297,36.52,170.6,170.55,81.5]
[1748194511495,36.52,170.6,170.58,26.0]
[1748194524618,36.52,170.6,170.57,26.0]
[1748194524942,2.19165575,170.59,170.57,26.0]
[1748194525824,2.19165575,170.58,170.57,26.0]
[1748194527126,36.52,170.6,170.57,26.0]
[1748194527514,36.52,170.6,170.57,107.5]
[1748194537245,38.0516,170.6,170.57,107.5]
[1748194537826,2.19107677,170.59,170.57,107.5]
[1748194538939,38.0516,170.6,170.57,107.5]
[1748194539346,38.0516,170.6,170.55,26.0]
[1748194540636,2.19096934,170.59,170.55,26.0]
[1748194541360,38.0516,170.6,170.55,26.0]
[1748194542654,2.19118516,170.59,170.55,26.0]
[1748194543439,2.19118516,170.58,170.55,26.0]
[1748194544065,38.0516,170.6,170.55,26.0]
[1748194545064,2.19167345,170.59,170.55,26.0]
[1748194546042,2.19167345,170.58,170.55,26.0]
[1748194546940,38.0516,170.6,170.55,26.0]
[1748194547879,2.19173095,170.59,170.55,26.0]
[1748194548539,2.19173095,170.58,170.55,26.0]
[1748194549262,38.0516,170.6,170.55,26.0]
[1748194549639,18.64964886,170.59,170.55,26.0]
[1748194549864,20.84122042,170.59,170.55,26.0]
[1748194550676,2.19157156,170.58,170.55,26.0]
[1748194551541,2.19157156,170.57,170.55,26.0]
[1748194551966,2.19157156,170.57,170.52,26.0]
[1748194552343,2.19157156,170.56,170.52,26.0]
[1748194553153,2.19157156,170.56,170.46,87.7884]
[1748194553359,2.19157156,170.56,170.47,35.14]
[1748194553673,2.19157156,170.55,170.5,26.0]
[1748194553845,36.52,170.54,170.5,26.0]
[1748194560380,36.52,170.54,170.49,26.0]
[1748194563077,36.52,170.54,170.46,122.9284]
[1748194563876,36.52,170.54,170.49,26.0]
[1748194564076,18.64964886,170.49,170.4,35.84215413]
[1748194564284,18.64964886,170.47,170.4,29.19405413]
[1748194564460,16.46876608,170.46,170.39,9.21098403]
[1748194564778,16.46876608,170.46,170.42,26.0]
[1748194565279,18.64964886,170.47,170.42,26.0]
[1748194566160,38.1491,170.48,170.42,26.0]
[1748194566682,36.52,170.47,170.43,26.0]
[1748194567262,36.52,170.47,170.42,26.0]
[1748194569476,18.64964886,170.46,170.42,26.0]
[1748194570298,44.43791662,170.46,170.42,26.0]
[1748194572086,25.78826776,170.45,170.41,26.0]
[1748194572468,18.64964886,170.43,170.41,26.0]
[1748194572669,18.64964886,170.43,170.39,26.0]
[1748194573585,44.43791662,170.43,170.34,81.5]
[1748194573783,18.64964886,170.42,170.35,35.16]
[1748194574085,36.52,170.41,170.35,35.16]
[1748194574263,36.52,170.41,170.38,26.0]
[1748194583091,36.52,170.41,170.38,107.5]
[1748194598288,36.52,170.41,170.4,26.0]
[1748194602703,36.52,170.41,170.37,81.5]
[1748194603110,36.52,170.41,170.4,26.0]
[1748194604190,36.52,170.41,170.38,26.0]
[1748194624649,36.52,170.41,170.4,26.0]
[1748194648478,38.71420254,170.41,170.4,26.0]
[1748194651487,36.52,170.41,170.38,26.0]
[1748194651675,1.5617,170.4,170.38,26.0]
[1748194651864,1.5617,170.4,170.36,26.0]
[1748194654983,4.93148701,170.4,170.36,26.0]
[1748194655193,2.19392703,170.39,170.36,26.0]
[1748194655877,3.36978701,170.4,170.36,26.0]
[1748194656185,39.90978701,170.4,170.37,26.0]
[1748194657273,39.90978701,170.4,170.37,107.5]
[1748194657577,36.54,170.4,170.37,107.5]
[1748194672004,36.54,170.4,170.37,142.68]
[1748194673105,36.54,170.4,170.37,148.54946455]
[1748194674503,36.54,170.4,170.37,142.68]
[1748194680189,36.54,170.4,170.37,116.68]
[1748194680509,36.54,170.4,170.39,26.0]
[1748194683715,36.54,170.4,170.39,107.5]
[1748194684710,36.52,170.42,170.39,107.5]
[1748194703718,18.64964886,170.46,170.39,107.5]
[1748194703921,36.52,170.43,170.39,107.5]
[1748194707231,36.52,170.43,170.4,26.0]
[1748194722938,36.5,170.42,170.4,26.0]
[1748194728142,36.5,170.42,170.4,107.5]
[1748194734446,36.5,170.42,170.4,26.0]
[1748194739857,36.5,170.42,170.4,107.5]
[1748194747645,36.48,170.43,170.4,107.5]
[1748194749060,1.5893,170.48,170.4,107.5]
[1748194749245,36.48,170.47,170.4,142.68]
[1748194749849,36.48,170.47,170.4,148.54848987]
[1748194752972,36.48,170.47,170.44,26.0]
[1748194753147,36.48,170.47,170.44,107.5]
[1748194763273,36.48,170.47,170.44,26.0]
[1748194774959,36.48,170.47,170.44,107.5]
[1748194792679,36.48,170.47,170.43,26.0]
[1748194801516,36.48,170.47,170.4,81.5]
[1748194801517,18.64964886,170.46,170.4,81.5]
[1748194801891,18.64964886,170.46,170.43,26.0]
[1748194802118,18.64964886,170.46,170.4,81.5]
[1748194802513,18.64964886,170.46,170.43,26.0]
[1748194802891,18.64964886,170.44,170.37,81.5]
[1748194803090,18.64964886,170.42,170.37,81.5]
[1748194803306,36.46,170.41,170.37,26.0]
[1748194804087,36.46,170.41,170.34,81.5]
[1748194804616,18.64964886,170.4,170.34,81.5]
[1748194805001,18.64964886,170.4,170.37,26.0]
[1748194805399,18.64964886,170.4,170.34,81.5]
[1748194806016,18.64964886,170.4,170.37,26.0]
[1748194806516,18.64964886,170.4,170.34,81.5]
[1748194806713,18.64964886,170.4,170.37,26.0]
[1748194806896,35.14747013,170.4,170.37,26.0]
[1748194807098,36.46,170.41,170.37,26.0]
[1748194807399,36.46,170.41,170.35,26.0]
[1748194807597,36.46,170.41,170.36,26.0]
[1748194810318,36.46,170.4,170.36,107.5]
[1748194810518,36.46,170.41,170.36,107.5]
[1748194822117,36.46,170.41,170.36,26.0]
[1748194822320,52.95782127,170.41,170.36,26.0]
[1748194823699,36.46,170.41,170.36,26.0]
[1748194824126,18.64964886,170.4,170.36,26.0]
[1748194826020,18.64964886,170.4,170.34,26.0]
[1748194831121,18.64964886,170.4,170.34,107.5]
[1748194836017,35.14747013,170.4,170.34,107.5]
[1748194837526,36.46,170.39,170.34,107.5]
[1748194841418,52.95782127,170.39,170.33,26.0]
[1748194843934,36.46,170.39,170.35,26.0]
[1748194845724,36.46,170.39,170.35,107.5]
[1748194847416,18.64964886,170.38,170.35,81.5]
[1748194847841,18.64964886,170.38,170.37,26.0]
[1748194848440,18.64964886,170.38,170.33,26.0]
[1748194848620,18.64964886,170.38,170.33,107.5]
[1748194851942,36.46,170.37,170.33,107.5]
[1748194852745,36.46,170.37,170.26,4.65446179]
[1748194852746,18.64964886,170.36,170.26,4.65446179]
[1748194853039,18.64964886,170.36,170.29,26.0]
[1748194853740,18.64964886,170.36,170.3,26.0]
[1748194854669,18.64964886,170.36,170.27,87.37297147]
[1748194856044,18.64964886,170.36,170.3,26.0]
[1748194857138,18.64964886,170.36,170.31,26.0]
[1748194858640,71.64,170.37,170.31,107.5]
[1748194858842,36.46,170.37,170.31,107.5]
[1748194860142,36.46,170.37,170.31,113.37159632]
[1748194866041,36.46,170.37,170.31,251.17159632]
[1748194867124,36.46,170.37,170.31,265.85071087]
[1748194876052,36.46,170.37,170.35,26.0]
[1748194876245,36.46,170.37,170.36,35.18]
[1748194876761,36.44,170.41,170.39,26.0]
[1748194880541,18.64964886,170.4,170.39,26.0]
[1748194881041,18.64964886,170.4,170.37,26.0]
[1748194887972,36.44,170.39,170.37,26.0]
[1748194892968,36.44,170.39,170.37,107.5]
[1748194907370,36.42,170.41,170.37,107.5]
[1748194907755,36.42,170.41,170.37,142.68]
[1748194909067,36.42,170.41,170.37,148.54952291]
[1748194916090,36.42,170.46,170.42,26.0]
[1748194916297,36.42,170.46,170.42,107.5]
[1748194926187,36.42,170.46,170.42,113.36773292]
[1748194930402,36.42,170.46,170.42,251.16773292]
[1748194930984,36.38,170.51,170.42,251.16773292]
[1748194936015,36.38,170.51,170.47,26.0]
[1748194936182,36.38,170.51,170.47,107.5]
[1748194940899,36.38,170.51,170.47,113.36593073]
[1748194946913,36.38,170.51,170.47,107.5]
[1748194947121,36.38,170.51,170.5,26.0]
[1748194947311,36.38,170.51,170.5,61.16]
[1748194948819,36.38,170.51,170.5,142.66]
[1748194948988,36.38,170.51,170.5,107.5]
[1748194949194,36.38,170.56,170.5,107.5]
[1748194949494,36.38,170.56,170.5,245.3]
[1748194949914,36.38,170.56,170.5,251.16492418]
[1748194950294,36.38,170.56,170.54,26.0]
[1748194950596,36.38,170.56,170.54,107.5]
[1748194967507,1.6046,170.58,170.54,107.5]
[1748194970105,36.36,170.59,170.54,107.5]
[1748194971325,36.36,170.59,170.58,26.0]
[1748194971631,36.36,170.59,170.58,107.5]
[1748194972232,36.36,170.59,170.58,26.0]
[1748194973741,36.36,170.59,170.58,35.14]
[1748194974236,18.64964886,170.66,170.58,35.14]
[1748194974237,36.34,170.64,170.61,26.0]
[1748194975623,36.34,170.64,170.61,280.44]
[1748194975816,120.68,170.7,170.61,280.44]
[1748194976013,36.34,170.7,170.62,0.14216157]
[1748194976229,36.34,170.7,170.62,0.72797432]
[1748194976535,36.34,170.7,170.65,26.0]
[1748194976740,36.34,170.7,170.69,26.0]
[1748194977034,36.34,170.7,170.69,107.5]
[1748194977414,36.34,170.7,170.69,26.0]
[1748194979533,36.34,170.7,170.65,26.0]
[1748194979713,36.34,170.7,170.65,107.5]
[1748194988143,1.6254,170.72,170.65,107.5]
[1748194988329,37.9454,170.72,170.65,107.5]
[1748194988525,1.6254,170.72,170.65,142.62]
[1748194988742,36.32,170.74,170.65,142.62]
[1748194988945,36.32,170.74,170.65,280.42]
[1748194991426,36.32,170.74,170.66,0.14216157]
[1748194991631,36.32,170.74,170.68,26.0]
[1748194991935,36.32,170.74,170.68,61.12]
[1748194993134,36.32,170.74,170.68,280.42]
[1748195000845,36.32,170.74,170.68,286.27890736]
[1748195001055,36.3,170.79,170.69,0.14216157]
[1748195001251,36.3,170.79,170.72,26.0]
[1748195001439,36.3,170.79,170.74,26.0]
[1748195001652,36.3,170.79,170.74,107.5]
[1748195003465,44.35800803,170.78,170.74,107.5]
[1748195004791,44.35800803,170.78,170.74,26.0]
[1748195007458,18.64964886,170.78,170.74,26.0]
[1748195008569,36.3,170.79,170.74,26.0]
[1748195010758,36.3,170.79,170.74,107.5]
[1748195016076,36.3,170.79,170.74,107.0]
[1748195050905,36.26,170.81,170.74,107.0]
[1748195051289,36.26,170.81,170.74,142.1]
[1748195053210,36.26,170.81,170.74,107.0]
[1748195053211,16.44320434,170.8,170.74,107.0]
[1748195053882,18.64964886,170.8,170.74,107.0]
[1748195055201,36.26,170.81,170.74,107.0]
[1748195057519,1.6615,170.84,170.74,244.8]
[1748195057692,36.26,170.81,170.74,279.9]
[1748195058108,36.26,170.81,170.74,285.75680372]
[1748195058820,36.26,170.81,170.74,279.9]
[1748195060113,36.26,170.81,170.77,26.0]
[1748195060698,36.26,170.81,170.77,107.5]
[1748195065431,16.44320434,170.78,170.69,9.21098403]
[1748195065719,16.44320434,170.78,170.63,36.84393614]
[1748195065720,18.79181043,170.69,170.63,36.84393614]
[1748195065894,35.23501477,170.64,170.63,36.84393614]
[1748195066094,18.64964886,170.64,170.63,36.84393614]
[1748195066319,91.9362,170.7,170.63,62.84393614]
[1748195066521,18.64964886,170.66,170.65,26.0]
[1748195066705,35.0928532,170.66,170.65,26.0]
[1748195066903,41.65170236,170.66,170.65,26.0]
[1748195067113,41.65170236,170.66,170.63,26.0]
[1748195067323,16.44320434,170.65,170.6,36.84393614]
[1748195067522,16.44320434,170.64,170.6,36.84393614]
[1748195067704,36.26,170.63,170.6,36.84393614]
[1748195068227,25.74326972,170.64,170.63,26.0]
[1748195068412,62.00326972,170.64,170.6,36.84393614]
[1748195068828,62.00326972,170.64,170.63,26.0]
[1748195069013,66.36350224,170.64,170.63,26.0]
[1748195070025,40.62023252,170.64,170.63,26.0]
[1748195070217,66.36350224,170.64,170.63,26.0]
[1748195070715,62.00326972,170.64,170.63,26.0]
[1748195071235,62.00326972,170.64,170.59,26.0]
[1748195071406,36.26,170.64,170.59,26.0]
[1748195071835,36.26,170.64,170.58,26.0]
[1748195073222,36.28,170.63,170.58,26.0]
[1748195074330,36.28,170.63,170.54,88.021]
[1748195074331,36.28,170.63,170.59,26.0]
[1748195077841,18.64964886,170.66,170.59,26.0]
[1748195078046,36.28,170.63,170.59,26.0]
[1748195078741,44.39291858,170.66,170.59,26.0]
[1748195078950,36.3,170.63,170.59,26.0]
[1748195081443,36.3,170.63,170.59,107.5]
[1748195087251,36.3,170.63,170.57,26.0]
[1748195093152,36.3,170.63,170.57,107.5]
[1748195097869,18.64964886,170.66,170.57,107.5]
[1748195098043,36.62,170.64,170.57,107.5]
[1748195098240,36.62,170.64,170.57,246.8152]
[1748195099150,36.62,170.64,170.57,252.67786026]
[1748195100777,36.62,170.66,170.61,26.0]
[1748195101069,84.22,170.7,170.65,26.0]
[1748195101247,36.62,170.71,170.69,26.0]
[1748195105057,36.62,170.71,170.69,107.5]
[1748195115208,36.62,170.71,170.69,142.62]
[1748195127703,36.52,170.74,170.69,142.62]
[1748195132127,18.64964886,170.77,170.69,142.62]
[1748195132309,36.52,170.75,170.69,142.62]
[1748195135555,12.2,170.76,170.7,0.7279043]
[1748195135736,12.2,170.76,170.72,0.14216157]
[1748195136055,36.52,170.8,170.76,26.0]
[1748195136234,36.52,170.8,170.79,26.0]
[1748195143957,40.88285293,170.8,170.79,26.0]
[1748195146149,40.88285293,170.8,170.79,107.5]
[1748195147172,36.52,170.8,170.79,107.5]
[1748195156267,36.52,170.8,170.79,26.0]
[1748195159196,36.38,170.81,170.79,26.0]
[1748195160611,1.5432,170.85,170.79,26.0]
[1748195160779,36.38,170.84,170.79,107.5]
[1748195161611,4.36221515,170.83,170.79,107.5]
[1748195162775,4.36221515,170.82,170.79,107.5]
[1748195163596,4.36221515,170.81,170.79,107.5]
[1748195163795,4.36221515,170.81,170.79,26.0]
[1748195164877,97.22326972,170.84,170.79,26.0]
[1748195166212,4.36343401,170.83,170.79,26.0]
[1748195166807,4.36343401,170.83,170.79,107.5]
[1748195167495,4.36343401,170.82,170.79,107.5]
[1748195168409,25.74326972,170.83,170.79,107.5]
[1748195168887,25.74326972,170.82,170.77,26.0]
[1748195169205,25.74326972,170.8,170.74,81.5]
[1748195169581,30.108742,170.79,170.74,81.5]
[1748195169896,36.38,170.78,170.77,26.0]
[1748195170329,80.77291858,170.78,170.73,26.0]
[1748195170533,80.77291858,170.78,170.7,81.5]
[1748195170732,4.36547228,170.77,170.7,81.5]
[1748195171046,4.36547228,170.77,170.73,26.0]
[1748195171357,18.64964886,170.76,170.7,81.5]
[1748195171725,18.64964886,170.76,170.73,26.0]
[1748195175461,71.48,170.78,170.73,26.0]
[1748195175758,4.36806057,170.77,170.73,26.0]
[1748195176957,4.36806057,170.76,170.73,26.0]
[1748195178156,36.38,170.78,170.73,26.0]
[1748195178756,4.36958622,170.77,170.73,26.0]
[1748195179242,4.36958622,170.77,170.74,26.0]
[1748195179438,4.36958622,170.77,170.76,26.0]
[1748195179648,36.64,170.81,170.76,107.5]
[1748195180759,36.64,170.81,170.76,142.6]
[1748195182561,36.64,170.81,170.76,107.5]
[1748195186379,44.39291858,170.8,170.76,26.0]
[1748195186680,25.74326972,170.79,170.76,26.0]
[1748195186885,18.64964886,170.78,170.75,26.0]
[1748195187084,18.64964886,170.78,170.7,116.6]
[1748195187376,18.64964886,170.78,170.73,26.0]
[1748195187553,18.64964886,170.8,170.73,26.0]
[1748195188081,4.37057569,170.79,170.73,26.0]
[1748195189347,97.48326972,170.81,170.73,26.0]
[1748195189548,25.74326972,170.81,170.73,26.0]
[1748195189751,36.64,170.8,170.73,26.0]
[1748195189968,62.38326972,170.8,170.73,26.0]
[1748195190158,44.39291858,170.79,170.73,26.0]
[1748195191475,4.37026587,170.78,170.73,26.0]
[1748195191675,4.37026587,170.78,170.74,26.0]
[1748195191851,4.37026587,170.78,170.74,107.5]
[1748195192255,18.64964886,170.79,170.74,107.5]
[1748195192777,8.1532,170.78,170.74,107.5]
[1748195192980,25.74326972,170.75,170.64,35.1]
[1748195193279,36.64,170.74,170.65,61.1]
[1748195196172,36.64,170.74,170.65,66.95982072]
[1748195199359,36.64,170.74,170.68,26.0]
[1748195199560,36.64,170.74,170.68,107.5]
[1748195209057,36.64,170.74,170.68,142.62]
[1748195213689,36.64,170.74,170.68,107.5]
[1748195218380,36.64,170.74,170.72,26.0]
[1748195218579,36.64,170.74,170.72,107.5]
[1748195220405,36.64,170.74,170.72,142.62]
[1748195224420,36.64,170.74,170.72,116.62]
[1748195224917,36.64,170.74,170.72,81.5]
[1748195229897,36.64,170.74,170.73,26.0]
[1748195233011,62.38326972,170.74,170.71,26.0]
[1748195233411,36.64,170.74,170.71,26.0]
[1748195234125,4.37990012,170.73,170.71,26.0]
[1748195235133,36.64,170.74,170.71,26.0]
[1748195237435,4.38098866,170.73,170.71,26.0]
[1748195237733,4.38098866,170.73,170.69,26.0]
[1748195238434,36.64,170.74,170.69,26.0]
[1748195239128,18.64964886,170.73,170.69,26.0]
[1748195239350,36.64,170.74,170.69,142.62]
[1748195239515,4.38124719,170.72,170.69,142.62]
[1748195241236,36.64,170.74,170.69,142.62]
[1748195243444,36.64,170.74,170.69,198.92]
[1748195248750,36.64,170.74,170.69,204.77842737]
[1748195249338,36.64,170.74,170.69,286.27842737]
[1748195251354,36.64,170.74,170.69,280.42]
[1748195251648,36.48,170.77,170.69,280.42]
[1748195254430,36.48,170.77,170.69,280.4]
[1748195255251,18.64964886,170.76,170.69,142.6]
[1748195255431,18.64964886,170.76,170.69,107.5]
[1748195258369,4.37925184,170.75,170.69,107.5]
[1748195259054,18.64964886,170.76,170.69,107.5]
[1748195260039,36.48,170.77,170.69,107.5]
[1748195260969,4.37996501,170.76,170.69,107.5]
[1748195262055,36.48,170.77,170.69,107.5]
[1748195263767,4.38052358,170.76,170.69,107.5]
[1748195264449,36.48,170.77,170.69,107.5]
[1748195266859,4.38078848,170.76,170.69,107.5]
[1748195268071,36.48,170.77,170.69,107.5]
[1748195270371,4.38099344,170.76,170.69,107.5]
[1748195271072,36.48,170.77,170.69,107.5]
[1748195272883,36.48,170.77,170.69,245.3]
[1748195273175,4.38105139,170.76,170.69,245.3]
[1748195274080,36.48,170.77,170.69,245.3]
[1748195275774,4.38080831,170.76,170.69,251.15842733]
[1748195277075,36.48,170.77,170.69,251.15842733]
[1748195277793,36.48,170.77,170.73,26.0]
[1748195277970,36.48,170.77,170.74,26.0]
[1748195278479,36.48,170.77,170.74,107.5]
[1748195279094,4.38085816,170.76,170.74,107.5]
[1748195279881,36.48,170.77,170.74,107.5]
[1748195281279,36.36,170.82,170.74,280.4]
[1748195282273,4.38121886,170.81,170.74,280.4]
[1748195283197,36.36,170.82,170.74,280.4]
[1748195283377,48.56,170.82,170.74,280.4]
[1748195284693,74.24369015,170.82,170.74,61.1]
[1748195285184,4.37548107,170.81,170.74,61.1]
[1748195286196,48.56,170.82,170.74,61.1]
[1748195287799,74.24369015,170.82,170.74,61.1]
[1748195289595,48.56,170.82,170.74,61.1]
[1748195290694,48.56,170.82,170.74,280.4]
[1748195292728,44.33333901,170.81,170.74,245.3]
[1748195292893,25.68369015,170.8,170.74,219.3]
[1748195293093,25.68369015,170.79,170.74,219.3]
[1748195293314,25.68369015,170.79,170.77,26.0]
[1748195295030,25.68369015,170.78,170.77,26.0]
[1748195295199,18.64964886,170.77,170.74,219.3]
[1748195295400,25.68369015,170.77,170.74,26.0]
[1748195295633,36.36,170.76,170.74,26.0]
[1748195303047,44.33333901,170.75,170.66,7.5409]
[1748195303342,25.68369015,170.74,170.69,26.0]
[1748195303531,44.33333901,170.75,170.69,26.0]
[1748195304330,44.33333901,170.75,170.66,7.5409]
[1748195304643,44.33333901,170.75,170.69,26.0]
[1748195305663,36.36,170.76,170.69,26.0]
[1748195305839,36.36,170.76,170.69,61.1]
[1748195308264,36.36,170.76,170.69,142.6]
[1748195308454,62.04369015,170.76,170.69,142.6]
[1748195309364,36.36,170.76,170.69,142.6]
[1748195313057,62.04369015,170.76,170.69,142.6]
[1748195313462,36.36,170.76,170.69,142.6]
[1748195317270,36.36,170.76,170.69,280.4]
[1748195317871,18.79181043,170.75,170.6,7.8054]
[1748195318079,18.64964886,170.73,170.63,35.1]
[1748195318566,18.64964886,170.73,170.66,26.0]